[Event "GER-ch Youth U10W 2020"]
[Site "Willingen"]
[Date "2020.10.27"]
[Round "1.1"]
[White "Sickmann, Lisa"]
[Black "Heidtkamp, Anna"]
[Result "1-0"]
[ECO "C80"]
[WhiteElo "1510"]
[BlackElo "1078"]
[Annotator "NA RC"]
[PlyCount "65"]
[EventDate "2020.10.27"]
[EventType "swiss"]
[EventRounds "7"]
[EventCountry "GER"]
[SourceTitle "playchess.com"]
[Source "ChessBase"]
[SourceQuality "1"]
[TimeControl "40/4500+30:900+30"]

1. e4 {[%emt 0:00:00]} e5 {[%emt 0:00:00]} 2. Nf3 {[%emt 0:00:00]} Nc6 {[%emt 0:00:00]} 3. Bb5 {[%emt 0:00:00]} a6 {[%emt 0:00:14]} 4. Ba4 {[%emt 0:00:08]} Nf6 {[%emt 0:00:22]} 5. d4 {[%emt 0:00:56]} exd4 {[%emt 0:00:17]} 6. O-O {[%emt 0:00:48]} Nxe4 {[%emt 0:00:25]} 7. Re1 {[%emt 0:01:09]} d5 {[%emt 0:00:13]} 8. Nxd4 {[%emt 0:00:46]} Bd7 {[%emt 0:00:49]} 9. Bxc6 {[%emt 0:02:27]} Bxc6 {[%emt 0:00:18]} 10. f3 {[%emt 0:00:57]} Bc5 {[%emt 0:01:58]} 11. fxe4 {[%emt 0:00:35]} dxe4 {[%emt 0:00:22]} 12. Be3 {[%emt 0:01:04]} Qd7 {[%emt 0:00:43]} 13. Nc3 {[%emt 0:01:40]} Rd8 {[%emt 0:00:36]} 14. Nxc6 {[%emt 0:00:55]} Qxd1 {[%emt 0:00:43]} 15. Raxd1 {[%emt 0:00:13]} Rxd1 {[%emt 0:00:26]} 16. Nxd1 {[%emt 0:00:09]} Bxe3+ {[%emt 0:00:30]} 17. Rxe3 {[%emt 0:00:08]} bxc6 {[%emt 0:00:14]} 18. Rxe4+ {[%emt 0:00:05]} Kd7 {[%emt 0:00:39]} 19. Nc3 {[%emt 0:00:34]} Kd6 {[%emt 0:01:41]} 20. Kf2 {[%emt 0:00:17]} Rf8 {[%emt 0:00:52]} 21. Ke3 {[%emt 0:00:49]} f5 {[%emt 0:00:23]} 22. Rf4 {[%emt 0:00:47]} Re8+ {[%emt 0:00:26]} 23. Kd4 {[%emt 0:00:46]} c5+ {[%emt 0:00:19]} 24. Kc4 {[%emt 0:00:20]} Rf8 {[%emt 0:00:44]} 25. g3 {[%emt 0:01:16]} g6 {[%emt 0:00:23]} 26. Ne4+ {[%emt 0:00:54]} Kc6 {[%emt 0:00:49]} 27. Nxc5 {[%emt 0:00:48]} g5 {[%emt 0:00:35]} 28. Rf2 {[%emt 0:01:46]} f4 {[%emt 0:00:15]} 29. gxf4 {[%emt 0:00:39]} gxf4 {[%emt 0:00:24]} 30. Ne6 {[%emt 0:00:16]} Rf6 {[%emt 0:01:15]} 31. Nxf4 {[%emt 0:00:40]} h6 {[%emt 0:00:29]} 32. b4 {[%emt 0:00:38]} Kb6 {[%emt 0:00:38]} 33. Nd5+ {[%emt 0:00:06]} 1-0

[Event "GER-ch Youth U10W 2020"]
[Site "Willingen"]
[Date "2020.10.27"]
[Round "1.2"]
[White "Blaufuß, Lena"]
[Black "Bauer, Laura Sophie"]
[Result "0-1"]
[ECO "B23"]
[WhiteElo "1073"]
[BlackElo "1287"]
[Annotator "NA RC"]
[PlyCount "62"]
[EventDate "2020.10.27"]
[EventType "swiss"]
[EventRounds "7"]
[EventCountry "GER"]
[SourceTitle "playchess.com"]
[Source "ChessBase"]
[SourceQuality "1"]
[TimeControl "40/4500+30:900+30"]

1. e4 {[%emt 0:00:00]} c5 {[%emt 0:00:00]} 2. Nc3 {[%emt 0:00:05]} Nc6 {[%emt 0:00:00]} 3. Nge2 {[%emt 0:00:35]} Rb8 {[%emt 0:00:06]} 4. d3 {[%emt 0:00:44]} b5 {[%emt 0:00:34]} 5. Nf4 {[%emt 0:01:19]} b4 {[%emt 0:01:40]} 6. Nce2 {[%emt 0:01:01]} g6 {[%emt 0:01:28]} 7. Be3 {[%emt 0:00:55]} d6 {[%emt 0:00:59]} 8. d4 {[%emt 0:01:44]} Qa5 {[%emt 0:05:33]} 9. b3 {[%emt 0:02:45]} Bg7 {[%emt 0:02:32]} 10. g3 {[%emt 0:01:27]} cxd4 {[%emt 0:03:28]} 11. Nxd4 {[%emt 0:02:21]} Nxd4 {[%emt 0:06:13]} 12. Bxd4 {[%emt 0:01:05]} Nf6 {[%emt 0:02:02]} 13. Bg2 {[%emt 0:02:01]} e5 {[%emt 0:07:18]} 14. Nd5 {[%emt 0:05:53]} Nxd5 {[%emt 0:03:09]} 15. Bb2 {[%emt 0:02:15]} Nc3 {[%emt 0:07:01]} 16. Qxd6 Rb6 17. Qc7 {[%emt 0:07:10]} O-O {[%emt 0:01:34]} 18. O-O {[%emt 0:00:47]} Ra6 {[%emt 0:03:49]} 19. Qc4 {[%emt 0:02:26]} Rd6 {[%emt 0:02:02]} 20. a3 {[%emt 0:01:44]} Ba6 {[%emt 0:05:38]} 21. axb4 {[%emt 0:03:55]} Qxa1 {[%emt 0:04:41]} 22. Qxf7+ Rxf7 23. Rxa1 {[%emt 0:02:46]} Ne2+ {[%emt 0:01:58]} 24. Kh1 {[%emt 0:01:23]} Rfd7 {[%emt 0:00:43]} 25. Bh3 {[%emt 0:02:18]} Rd1+ {[%emt 0:02:14]} 26. Rxd1 {[%emt 0:00:40]} Rxd1+ {[%emt 0:00:09]} 27. Kg2 {[%emt 0:01:29]} Ng1 {[%emt 0:01:30]} 28. Be6+ {[%emt 0:01:08]} Kf8 {[%emt 0:00:11]} 29. Ba3 {[%emt 0:01:08]} Bf1+ {[%emt 0:01:04]} 30. Kh1 {[%emt 0:01:47]} Nf3 {[%emt 0:00:00]} 31. b5+ {[%emt 0:01:30]} Ke8 {[%emt 0:00:00]} 0-1

[Event "GER-ch Youth U10W 2020"]
[Site "Willingen"]
[Date "2020.10.27"]
[Round "1.3"]
[White "Trunz, Tamila"]
[Black "Zhou, Leyi Charlotte"]
[Result "0-1"]
[ECO "C96"]
[WhiteElo "1379"]
[BlackElo "1071"]
[Annotator "NA RC"]
[PlyCount "116"]
[EventDate "2020.10.27"]
[EventType "swiss"]
[EventRounds "7"]
[EventCountry "GER"]
[SourceTitle "playchess.com"]
[Source "ChessBase"]
[SourceQuality "1"]
[TimeControl "40/4500+30:900+30"]

1. e4 {[%emt 0:00:00]} e5 {[%emt 0:00:00]} 2. Nf3 {[%emt 0:00:00]} Nc6 {[%emt 0:00:00]} 3. Bb5 {[%emt 0:00:00]} a6 {[%emt 0:00:00]} 4. Ba4 {[%emt 0:00:00]} Nf6 {[%emt 0:00:22]} 5. O-O {[%emt 0:00:09]} Be7 {[%emt 0:00:19]} 6. Re1 {[%emt 0:00:12]} b5 {[%emt 0:00:25]} 7. Bb3 {[%emt 0:00:09]} d6 {[%emt 0:00:29]} 8. c3 {[%emt 0:01:04]} O-O {[%emt 0:00:27]} 9. h3 {[%emt 0:00:08]} Na5 {[%emt 0:00:27]} 10. Bc2 {[%emt 0:00:16]} c5 {[%emt 0:00:46]} 11. d4 {[%emt 0:00:50]} cxd4 {[%emt 0:03:36]} 12. cxd4 {[%emt 0:00:20]} exd4 {[%emt 0:02:25]} 13. Nxd4 {[%emt 0:00:35]} d5 {[%emt 0:02:12]} 14. exd5 {[%emt 0:03:16]} Nxd5 {[%emt 0:01:02]} 15. Be4 {[%emt 0:01:37]} Bb7 {[%emt 0:02:46]} 16. Nf5 {[%emt 0:01:32]} Bb4 {[%emt 0:03:13]} 17. Re2 {[%emt 0:06:32]} Nf4 {[%emt 0:03:59]} 18. Qxd8 {[%emt 0:06:15]} Nxe2+ {[%emt 0:00:30]} 19. Kf1 {[%emt 0:00:25]} Raxd8 {[%emt 0:00:41]} 20. Bxb7 {[%emt 0:01:10]} Nxc1 {[%emt 0:00:26]} 21. Bf3 {[%emt 0:01:04]} Rfe8 {[%emt 0:02:43]} 22. Ne3 {[%emt 0:01:19]} Nd3 {[%emt 0:01:14]} 23. a3 {[%emt 0:01:13]} Bc5 {[%emt 0:03:17]} 24. b4 {[%emt 0:01:20]} Bxe3 {[%emt 0:00:14]} 25. fxe3 {[%emt 0:02:08]} Rxe3 {[%emt 0:00:41]} 26. Nd2 {[%emt 0:01:58]} Nc4 {[%emt 0:01:11]} 27. Nxc4 {[%emt 0:01:08]} bxc4 {[%emt 0:00:26]} 28. Bc6 {[%emt 0:04:02]} c3 {[%emt 0:03:54]} 29. Ba4 {[%emt 0:00:22]} Nb2 {[%emt 0:01:08]} 30. Bc2 {[%emt 0:01:17]} Rd2 {[%emt 0:01:05]} 31. Bf5 {[%emt 0:01:02]} c2 {[%emt 0:00:41]} 32. Bxc2 {[%emt 0:00:54]} Rxc2 {[%emt 0:00:11]} 33. a4 {[%emt 0:00:16]} Rb3 {[%emt 0:00:35]} 34. b5 {[%emt 0:00:18]} axb5 {[%emt 0:00:19]} 35. axb5 {[%emt 0:00:18]} f6 {[%emt 0:01:16]} 36. Ra8+ {[%emt 0:00:26]} Kf7 {[%emt 0:00:20]} 37. Ra7+ {[%emt 0:00:17]} Kg6 {[%emt 0:00:09]} 38. g4 {[%emt 0:00:22]} Na4 {[%emt 0:00:14]} 39. Re7 {[%emt 0:00:19]} Rxb5 {[%emt 0:00:30]} 40. h4 {[%emt 0:00:37]} Rb1+ {[%emt 0:00:31]} 41. Re1 {[%emt 0:15:22]} Rxe1+ {[%emt 0:15:12]} 42. Kxe1 {[%emt 0:00:19]} Rc4 {[%emt 0:00:13]} 43. h5+ {[%emt 0:00:20]} Kg5 {[%emt 0:00:13]} 44. Kf2 {[%emt 0:00:09]} Rxg4 {[%emt 0:00:18]} 45. Kf3 {[%emt 0:00:24]} Rf4+ {[%emt 0:00:12]} 46. Ke2 {[%emt 0:00:08]} Nc3+ {[%emt 0:00:08]} 47. Ke1 {[%emt 0:00:10]} Rf3 {[%emt 0:00:14]} 48. Kd2 {[%emt 0:00:11]} Rh3 {[%emt 0:00:18]} 49. Kc1 {[%emt 0:00:09]} Nd5 {[%emt 0:00:29]} 50. h6 {[%emt 0:00:12]} Kxh6 {[%emt 0:00:13]} 51. Kb1 {[%emt 0:00:14]} Rh2 {[%emt 0:00:11]} 52. Ka1 {[%emt 0:00:09]} Kg5 {[%emt 0:00:07]} 53. Kb1 {[%emt 0:00:22]} Kf4 {[%emt 0:00:12]} 54. Kc1 {[%emt 0:00:07]} Ke3 {[%emt 0:00:15]} 55. Kb1 {[%emt 0:00:13]} Kd3 {[%emt 0:00:15]} 56. Ka1 {[%emt 0:00:07]} Kc3 {[%emt 0:00:25]} 57. Kb1 {[%emt 0:00:11]} Nb4 {[%emt 0:00:07]} 58. Ka1 {[%emt 0:00:14]} Rh1# {[%emt 0:00:08]} 0-1

[Event "GER-ch Youth U10W 2020"]
[Site "Willingen"]
[Date "2020.10.27"]
[Round "1.4"]
[White "Woiteck, Sophia"]
[Black "Neininger, Sarah"]
[Result "1-0"]
[ECO "D00"]
[WhiteElo "1065"]
[BlackElo "1469"]
[Annotator "NA RC"]
[PlyCount "91"]
[EventDate "2020.10.27"]
[EventType "swiss"]
[EventRounds "7"]
[EventCountry "GER"]
[SourceTitle "playchess.com"]
[Source "ChessBase"]
[SourceQuality "1"]
[TimeControl "40/4500+30:900+30"]

1. d4 {[%emt 0:00:00]} d5 {[%emt 0:00:00]} 2. Bf4 {[%emt 0:00:00]} e6 {[%emt 0:00:00]} 3. Nf3 {[%emt 0:00:05]} Nf6 {[%emt 0:00:00]} 4. e3 {[%emt 0:00:21]} Bd6 {[%emt 0:00:07]} 5. Bg3 {[%emt 0:00:10]} c5 {[%emt 0:00:25]} 6. Bxd6 {[%emt 0:00:59]} Qxd6 {[%emt 0:00:09]} 7. c4 {[%emt 0:00:27]} O-O {[%emt 0:01:43]} 8. Nc3 {[%emt 0:00:21]} cxd4 {[%emt 0:00:49]} 9. exd4 {[%emt 0:01:18]} Qb4 {[%emt 0:01:21]} 10. Qd2 {[%emt 0:09:53]} dxc4 {[%emt 0:01:14]} 11. Be2 {[%emt 0:01:45]} Nc6 {[%emt 0:01:47]} 12. O-O {[%emt 0:00:56]} Rd8 {[%emt 0:02:33]} 13. Qe3 {[%emt 0:09:53]} Qxb2 {[%emt 0:03:00]} 14. Rab1 {[%emt 0:00:45]} Qa3 {[%emt 0:02:13]} 15. Bxc4 {[%emt 0:01:15]} Qd6 {[%emt 0:01:51]} 16. Rfd1 {[%emt 0:00:56]} a6 {[%emt 0:02:57]} 17. Ne4 {[%emt 0:03:31]} Nxe4 {[%emt 0:01:13]} 18. Qxe4 {[%emt 0:00:37]} Na5 {[%emt 0:07:37]} 19. Bb3 {[%emt 0:04:49]} Nxb3 {[%emt 0:02:01]} 20. Rxb3 {[%emt 0:01:08]} Qd5 {[%emt 0:02:38]} 21. Qh4 {[%emt 0:01:22]} b5 {[%emt 0:04:24]} 22. Re3 {[%emt 0:10:29]} Bb7 {[%emt 0:03:20]} 23. Re5 {[%emt 0:00:45]} Qxa2 {[%emt 0:02:58]} 24. Rh5 {[%emt 0:05:31]} Qc2 {[%emt 0:03:46]} 25. Rf1 {[%emt 0:00:44]} Qg6 {[%emt 0:01:49]} 26. Rg5 {[%emt 0:01:04]} Qe4 {[%emt 0:03:12]} 27. Rg4 {[%emt 0:00:58]} Qf5 {[%emt 0:01:50]} 28. Rf4 {[%emt 0:00:53]} Qd5 {[%emt 0:02:18]} 29. Rg4 {[%emt 0:01:30]} b4 {[%emt 0:01:50]} 30. Qh6 {[%emt 0:01:06]} g6 {[%emt 0:03:26]} 31. Ng5 {[%emt 0:01:28]} Qf5 {[%emt 0:04:34]} 32. Nxh7 {[%emt 0:03:14]} e5 {[%emt 0:03:57]} 33. h4 {[%emt 0:02:13]} exd4 {[%emt 0:01:30]} 34. h5 {[%emt 0:00:51]} Qe5 {[%emt 0:00:52]} 35. hxg6 {[%emt 0:00:46]} d3 {[%emt 0:02:32]} 36. Nf6+ {[%emt 0:04:55]} Qxf6 {[%emt 0:00:15]} 37. gxf7+ {[%emt 0:00:21]} Kxf7 {[%emt 0:00:18]} 38. Rf4 {[%emt 0:00:28]} Qxf4 {[%emt 0:00:54]} 39. Qxf4+ {[%emt 0:00:13]} Ke8 {[%emt 0:00:37]} 40. Qe3+ {[%emt 0:01:22]} Kf7 {[%emt 0:00:48]} 41. Qf4+ {[%emt 0:15:25]} Ke6 {[%emt 0:15:38]} 42. Re1+ {[%emt 0:00:26]} Kd7 {[%emt 0:01:00]} 43. Qxb4 {[%emt 0:00:51]} Kc8 {[%emt 0:00:36]} 44. Re7 {[%emt 0:01:09]} Ra7 {[%emt 0:00:57]} 45. Qc5+ {[%emt 0:00:16]} Kb8 {[%emt 0:00:15]} 46. Qc7+ {[%emt 0:00:21]} 1-0

[Event "GER-ch Youth U10W 2020"]
[Site "Willingen"]
[Date "2020.10.27"]
[Round "1.5"]
[White "Czaeczine, Paula"]
[Black "Abram, Kristina-Maria"]
[Result "1-0"]
[ECO "C45"]
[WhiteElo "1127"]
[BlackElo "1038"]
[Annotator "NA RC"]
[PlyCount "71"]
[EventDate "2020.10.27"]
[EventType "swiss"]
[EventRounds "7"]
[EventCountry "GER"]
[SourceTitle "playchess.com"]
[Source "ChessBase"]
[SourceQuality "1"]
[TimeControl "40/4500+30:900+30"]

1. e4 {[%emt 0:00:00]} e5 {[%emt 0:00:00]} 2. Nf3 {[%emt 0:00:00]} Nc6 {[%emt 0:00:00]} 3. d4 {[%emt 0:00:00]} exd4 {[%emt 0:00:16]} 4. Nxd4 {[%emt 0:00:07]} Bc5 {[%emt 0:00:17]} 5. Be3 {[%emt 0:00:12]} Qf6 {[%emt 0:00:37]} 6. c3 {[%emt 0:00:15]} Nge7 {[%emt 0:00:41]} 7. Bc4 {[%emt 0:00:27]} Qg6 {[%emt 0:00:44]} 8. O-O {[%emt 0:15:27]} O-O {[%emt 0:03:51]} 9. Nd2 {[%emt 0:05:16]} d6 {[%emt 0:01:49]} 10. Re1 {[%emt 0:06:53]} Be6 {[%emt 0:11:23]} 11. Qf3 {[%emt 0:07:31]} Ne5 {[%emt 0:01:39]} 12. Qe2 {[%emt 0:07:03]} Nxc4 {[%emt 0:01:29]} 13. Nxe6 {[%emt 0:02:14]} fxe6 {[%emt 0:00:40]} 14. Bxc5 {[%emt 0:01:08]} Nxd2 {[%emt 0:00:18]} 15. Bb4 {[%emt 0:01:49]} Nf3+ {[%emt 0:00:47]} 16. Kh1 {[%emt 0:01:06]} Nxe1 {[%emt 0:00:15]} 17. Rxe1 {[%emt 0:00:09]} Qf6 {[%emt 0:00:46]} 18. f3 {[%emt 0:00:44]} Qh4 {[%emt 0:00:51]} 19. e5 {[%emt 0:02:13]} c5 {[%emt 0:00:47]} 20. exd6 {[%emt 0:00:56]} cxb4 {[%emt 0:00:14]} 21. dxe7 {[%emt 0:00:11]} Qxe7 {[%emt 0:00:12]} 22. cxb4 {[%emt 0:00:33]} Rae8 {[%emt 0:00:22]} 23. Qc4 {[%emt 0:02:08]} Rd8 {[%emt 0:01:39]} 24. h3 {[%emt 0:00:51]} Rf6 {[%emt 0:00:24]} 25. f4 {[%emt 0:01:27]} Rd2 {[%emt 0:00:40]} 26. f5 {[%emt 0:01:49]} Kf8 {[%emt 0:02:55]} 27. fxe6 {[%emt 0:03:44]} Rxb2 {[%emt 0:00:24]} 28. Qc8+ {[%emt 0:01:57]} Qe8 {[%emt 0:00:23]} 29. e7+ {[%emt 0:00:53]} Kf7 {[%emt 0:00:42]} 30. Qc4+ {[%emt 0:00:46]} Kg6 {[%emt 0:00:24]} 31. Qg4+ {[%emt 0:01:41]} Kf7 {[%emt 0:00:22]} 32. Qh5+ {[%emt 0:00:47]} Rg6 {[%emt 0:00:23]} 33. Qd5+ {[%emt 0:03:55]} Kf6 {[%emt 0:00:23]} 34. Qf3+ {[%emt 0:01:52]} Kg5 {[%emt 0:00:34]} 35. Qg4+ {[%emt 0:00:20]} Kf6 {[%emt 0:00:20]} 36. Qf4# 1-0

[Event "GER-ch Youth U10W 2020"]
[Site "Willingen"]
[Date "2020.10.27"]
[Round "1.6"]
[White "Stepanjan, Tatevik Mia"]
[Black "Meier, Viktoria"]
[Result "0-1"]
[ECO "B12"]
[WhiteElo "1030"]
[BlackElo "1316"]
[Annotator "NA RC"]
[PlyCount "102"]
[EventDate "2020.10.27"]
[EventType "swiss"]
[EventRounds "7"]
[EventCountry "GER"]
[SourceTitle "playchess.com"]
[Source "ChessBase"]
[SourceQuality "1"]
[TimeControl "40/4500+30:900+30"]

1. e4 {[%emt 0:00:00]} c6 {[%emt 0:00:00]} 2. d4 {[%emt 0:00:00]} d5 {[%emt 0:00:00]} 3. e5 {[%emt 0:00:00]} Bf5 {[%emt 0:00:01]} 4. Nf3 {[%emt 0:00:41]} e6 {[%emt 0:00:17]} 5. Nc3 {[%emt 0:00:54]} Nd7 {[%emt 0:00:14]} 6. Be2 {[%emt 0:00:33]} Bg6 {[%emt 0:00:26]} 7. O-O {[%emt 0:00:23]} Ne7 {[%emt 0:00:16]} 8. Bg5 {[%emt 0:00:29]} Qb6 {[%emt 0:00:37]} 9. b3 {[%emt 0:00:50]} Nf5 {[%emt 0:00:22]} 10. h3 {[%emt 0:04:22]} Bb4 {[%emt 0:00:58]} 11. Na4 {[%emt 0:03:22]} Qc7 {[%emt 0:00:29]} 12. c3 {[%emt 0:02:08]} Ba5 {[%emt 0:02:31]} 13. b4 {[%emt 0:01:25]} Bb6 {[%emt 0:01:24]} 14. c4 {[%emt 0:06:25]} a5 {[%emt 0:03:46]} 15. b5 {[%emt 0:03:58]} c5 {[%emt 0:01:44]} 16. Be3 {[%emt 0:02:22]} Nxe3 {[%emt 0:01:16]} 17. fxe3 {[%emt 0:00:23]} O-O {[%emt 0:00:38]} 18. Ng5 {[%emt 0:01:48]} cxd4 {[%emt 0:02:20]} 19. Nxb6 {[%emt 0:02:13]} Nxb6 {[%emt 0:01:31]} 20. exd4 {[%emt 0:01:24]} dxc4 {[%emt 0:02:27]} 21. Rc1 {[%emt 0:02:20]} Qd7 {[%emt 0:00:34]} 22. a4 {[%emt 0:02:55]} Rac8 {[%emt 0:02:13]} 23. Rf4 {[%emt 0:04:35]} Qe7 {[%emt 0:00:56]} 24. h4 {[%emt 0:00:48]} Qb4 {[%emt 0:00:33]} 25. Ra1 {[%emt 0:02:56]} c3 {[%emt 0:01:16]} 26. Qc1 {[%emt 0:02:48]} Qb2 {[%emt 0:01:43]} 27. Bd1 {[%emt 0:03:00]} Qxc1 {[%emt 0:01:54]} 28. Rxc1 {[%emt 0:01:23]} c2 {[%emt 0:00:48]} 29. Bf3 {[%emt 0:01:18]} Rc7 {[%emt 0:00:30]} 30. Be4 {[%emt 0:03:10]} Bxe4 {[%emt 0:00:28]} 31. Nxe4 {[%emt 0:01:50]} Nxa4 {[%emt 0:02:24]} 32. Rf2 {[%emt 0:00:58]} Rfc8 {[%emt 0:00:17]} 33. Rd2 {[%emt 0:01:31]} Nb2 {[%emt 0:00:17]} 34. Nc5 {[%emt 0:01:11]} b6 {[%emt 0:00:48]} 35. Rcxc2 {[%emt 0:01:39]} Na4 {[%emt 0:03:14]} 36. Nxa4 {[%emt 0:04:21]} Rxc2 37. Rxc2 {[%emt 0:00:14]} Rxc2 {[%emt 0:00:49]} 38. Nxb6 {[%emt 0:01:16]} Rb2 {[%emt 0:00:17]} 39. Nd7 {[%emt 0:00:38]} Rxb5 {[%emt 0:00:12]} 40. Kf2 {[%emt 0:00:15]} a4 {[%emt 0:00:12]} 41. Nc5 {[%emt 0:15:42]} a3 {[%emt 0:15:50]} 42. d5 Rxc5 {[%emt 0:00:22]} 43. d6 {[%emt 0:01:58]} Rd5 {[%emt 0:00:08]} 44. Ke3 {[%emt 0:00:07]} a2 {[%emt 0:00:08]} 45. d7 {[%emt 0:00:12]} Rxd7 {[%emt 0:00:05]} 46. g4 {[%emt 0:00:07]} a1=Q {[%emt 0:00:09]} 47. g5 {[%emt 0:00:35]} Qd4+ {[%emt 0:00:09]} 48. Kf3 {[%emt 0:00:14]} Qd3+ {[%emt 0:00:14]} 49. Kf2 {[%emt 0:00:22]} Ra7 {[%emt 0:00:17]} 50. Ke1 {[%emt 0:00:17]} Ra2 {[%emt 0:00:08]} 51. g6 {[%emt 0:00:29]} Qb1# 0-1

[Event "GER-ch Youth U10W 2020"]
[Site "Willingen"]
[Date "2020.10.27"]
[Round "1.7"]
[White "Halas, Neele Zoe"]
[Black "Kutz, Ida Klara"]
[Result "0-1"]
[ECO "B43"]
[WhiteElo "1295"]
[BlackElo "997"]
[Annotator "NA RC"]
[PlyCount "118"]
[EventDate "2020.10.27"]
[EventType "swiss"]
[EventRounds "7"]
[EventCountry "GER"]
[SourceTitle "playchess.com"]
[Source "ChessBase"]
[SourceQuality "1"]
[TimeControl "40/4500+30:900+30"]

1. e4 {[%emt 0:00:00]} c5 {[%emt 0:00:00]} 2. Nf3 {[%emt 0:00:00]} e6 {[%emt 0:00:05]} 3. d4 {[%emt 0:00:00]} cxd4 4. Nxd4 a6 {[%emt 0:01:31]} 5. Nc3 {[%emt 0:00:33]} d6 {[%emt 0:00:50]} 6. Be3 {[%emt 0:00:50]} Nf6 {[%emt 0:00:18]} 7. f3 {[%emt 0:00:17]} Nc6 {[%emt 0:00:22]} 8. Qd2 {[%emt 0:01:22]} h6 {[%emt 0:00:43]} 9. g4 {[%emt 0:07:57]} d5 {[%emt 0:05:08]} 10. exd5 {[%emt 0:06:23]} Nxd5 {[%emt 0:01:16]} 11. O-O-O {[%emt 0:09:40]} Qc7 {[%emt 0:07:41]} 12. Nxd5 {[%emt 0:00:57]} exd5 {[%emt 0:07:13]} 13. Nb3 {[%emt 0:08:11]} Be6 {[%emt 0:08:23]} 14. Bg2 {[%emt 0:05:01]} Bb4 {[%emt 0:06:30]} 15. c3 {[%emt 0:06:43]} Be7 {[%emt 0:03:19]} 16. Kb1 {[%emt 0:08:11]} O-O {[%emt 0:06:26]} 17. h4 {[%emt 0:03:11]} Ne5 {[%emt 0:04:42]} 18. Bf4 {[%emt 0:02:49]} Bd6 {[%emt 0:04:34]} 19. g5 {[%emt 0:10:30]} Nc4 {[%emt 0:04:34]} 20. Qd4 {[%emt 0:04:14]} Bxf4 {[%emt 0:02:39]} 21. Nc5 {[%emt 0:01:24]} Qb6 {[%emt 0:03:16]} 22. Nb3 {[%emt 0:03:49]} Qxd4 {[%emt 0:04:31]} 23. Rxd4 {[%emt 0:00:11]} Be5 {[%emt 0:02:46]} 24. Rd3 {[%emt 0:01:04]} Bf5 {[%emt 0:00:38]} 25. Rhd1 {[%emt 0:01:00]} Ne3 {[%emt 0:03:01]} 26. Kc1 {[%emt 0:01:18]} Bxd3 {[%emt 0:01:23]} 27. Rxd3 {[%emt 0:00:24]} Nxg2 {[%emt 0:01:13]} 28. Rxd5 {[%emt 0:00:18]} Bf4+ {[%emt 0:01:06]} 29. Kb1 {[%emt 0:00:14]} Rfe8 {[%emt 0:00:54]} 30. a3 {[%emt 0:00:24]} Nxh4 {[%emt 0:00:54]} 31. gxh6 {[%emt 0:00:23]} Bxh6 {[%emt 0:00:36]} 32. Nc5 {[%emt 0:00:29]} Nxf3 {[%emt 0:00:35]} 33. Nxb7 {[%emt 0:00:13]} Rab8 {[%emt 0:00:47]} 34. Rd7 {[%emt 0:00:50]} Ne5 {[%emt 0:00:29]} 35. Rc7 {[%emt 0:00:16]} Rbc8 {[%emt 0:00:29]} 36. Rxc8 {[%emt 0:00:29]} Rxc8 {[%emt 0:00:10]} 37. Nd6 {[%emt 0:00:04]} Rd8 {[%emt 0:00:28]} 38. Nb7 {[%emt 0:00:07]} Rb8 {[%emt 0:00:24]} 39. Nc5 {[%emt 0:00:08]} Nc4 {[%emt 0:00:14]} 40. b4 {[%emt 0:00:26]} Nxa3+ {[%emt 0:00:22]} 41. Ka2 {[%emt 0:15:07]} Nb5 {[%emt 0:15:46]} 42. Kb3 {[%emt 0:00:22]} g5 {[%emt 0:00:33]} 43. Nxa6 {[%emt 0:00:09]} Rb6 {[%emt 0:00:15]} 44. Nc5 {[%emt 0:00:13]} g4 {[%emt 0:00:20]} 45. c4 {[%emt 0:00:23]} Nd4+ {[%emt 0:00:19]} 46. Ka4 {[%emt 0:00:07]} g3 {[%emt 0:00:10]} 47. b5 {[%emt 0:00:15]} g2 {[%emt 0:00:07]} 48. Ka5 {[%emt 0:00:23]} g1=Q {[%emt 0:00:22]} 49. Kxb6 {[%emt 0:00:04]} Qg6+ {[%emt 0:00:23]} 50. Ka5 {[%emt 0:00:14]} Kf8 {[%emt 0:00:08]} 51. b6 {[%emt 0:00:45]} Ke7 {[%emt 0:00:36]} 52. Ka6 {[%emt 0:00:37]} Bf4 {[%emt 0:00:18]} 53. Ka7 {[%emt 0:00:15]} Qd6 {[%emt 0:00:32]} 54. b7 {[%emt 0:01:19]} Qxc5+ {[%emt 0:00:40]} 55. Ka6 {[%emt 0:00:30]} Nc6 {[%emt 0:00:52]} 56. b8=Q Nxb8+ {[%emt 0:00:19]} 57. Kb7 {[%emt 0:00:32]} Qc7+ {[%emt 0:01:07]} 58. Ka8 {[%emt 0:00:11]} Nc6 {[%emt 0:00:16]} 59. c5 {[%emt 0:00:09]} Qa7# {[%emt 0:00:07]} 0-1

[Event "GER-ch Youth U10W 2020"]
[Site "Willingen"]
[Date "2020.10.27"]
[Round "1.8"]
[White "Peglau, Lorena"]
[Black "Huber, Laura"]
[Result "0-1"]
[ECO "A22"]
[WhiteElo "1061"]
[BlackElo "1249"]
[Annotator "NA RC"]
[PlyCount "88"]
[EventDate "2020.10.27"]
[EventType "swiss"]
[EventRounds "7"]
[EventCountry "GER"]
[SourceTitle "playchess.com"]
[Source "ChessBase"]
[SourceQuality "1"]
[TimeControl "40/4500+30:900+30"]

1. c4 {[%emt 0:00:00]} e5 {[%emt 0:00:09]} 2. Nc3 {[%emt 0:00:00]} Nf6 {[%emt 0:01:08]} 3. g3 {[%emt 0:00:01]} Nc6 {[%emt 0:01:25]} 4. Bg2 {[%emt 0:00:23]} Bc5 {[%emt 0:02:50]} 5. d3 {[%emt 0:00:43]} h6 {[%emt 0:07:29]} 6. e4 {[%emt 0:03:02]} d6 {[%emt 0:13:03]} 7. Nf3 {[%emt 0:04:40]} Bg4 {[%emt 0:04:07]} 8. Qb3 {[%emt 0:03:32]} Bxf3 {[%emt 0:02:17]} 9. Bxf3 {[%emt 0:00:16]} Nd4 {[%emt 0:00:52]} 10. Qd1 {[%emt 0:00:48]} Qd7 {[%emt 0:07:35]} 11. Bg2 {[%emt 0:02:30]} O-O {[%emt 0:04:04]} 12. Be3 {[%emt 0:00:43]} Nh7 {[%emt 0:05:10]} 13. f4 {[%emt 0:01:36]} Nc2+ {[%emt 0:07:55]} 14. Qxc2 {[%emt 0:00:40]} Bxe3 {[%emt 0:00:23]} 15. fxe5 {[%emt 0:00:13]} dxe5 {[%emt 0:01:00]} 16. Qe2 {[%emt 0:00:51]} Bd4 {[%emt 0:01:15]} 17. Qd2 {[%emt 0:01:57]} f5 {[%emt 0:01:20]} 18. exf5 {[%emt 0:00:28]} Qxf5 {[%emt 0:02:12]} 19. Bxb7 {[%emt 0:02:35]} Bf2+ {[%emt 0:05:48]} 20. Kd1 {[%emt 0:01:28]} Qg4+ {[%emt 0:01:20]} 21. Kc2 {[%emt 0:00:56]} Rab8 {[%emt 0:01:03]} 22. Bd5+ {[%emt 0:00:32]} Kh8 {[%emt 0:00:03]} 23. Rhf1 {[%emt 0:00:56]} Bd4 {[%emt 0:00:37]} 24. Rf7 {[%emt 0:01:47]} Rxf7 {[%emt 0:00:46]} 25. Bxf7 {[%emt 0:00:13]} Rf8 {[%emt 0:00:30]} 26. Bd5 {[%emt 0:00:51]} Rf2 {[%emt 0:00:20]} 27. Ne2 {[%emt 0:07:58]} Rxe2 {[%emt 0:00:43]} 28. h3 {[%emt 0:00:44]} Rxd2+ {[%emt 0:00:14]} 29. Kxd2 {[%emt 0:00:15]} Qxg3 {[%emt 0:00:26]} 30. Rf1 {[%emt 0:00:24]} Qe3+ {[%emt 0:00:52]} 31. Kc2 {[%emt 0:00:10]} Qe2+ {[%emt 0:00:07]} 32. Kb3 {[%emt 0:00:11]} Qxf1 {[%emt 0:00:04]} 33. Kb4 {[%emt 0:00:30]} Qxd3 {[%emt 0:00:10]} 34. a4 {[%emt 0:00:14]} Bxb2 {[%emt 0:00:12]} 35. c5 {[%emt 0:00:30]} Qxd5 {[%emt 0:00:12]} 36. a5 {[%emt 0:00:15]} a6 {[%emt 0:00:22]} 37. h4 {[%emt 0:00:24]} Ba3+ {[%emt 0:00:11]} 38. Kxa3 {[%emt 0:00:14]} Qxc5+ {[%emt 0:00:04]} 39. Ka2 {[%emt 0:00:18]} Qb4 {[%emt 0:00:04]} 40. h5 {[%emt 0:00:12]} e4 {[%emt 0:00:18]} 41. Ka1 {[%emt 0:15:13]} Qd2 {[%emt 0:15:03]} 42. Kb1 {[%emt 0:00:15]} e3 {[%emt 0:00:01]} 43. Ka1 {[%emt 0:00:18]} e2 {[%emt 0:00:01]} 44. Kb1 {[%emt 0:00:20]} e1=R# 0-1